bitfinex/quotes_ETHUSD_20250715
["timestamp","ask_amount","ask_price","bid_price","bid_amount"]
[1752586275180,5.4528,3027.2,3027.1,3.34349179]
[1752586275384,0.1648,3027.2,3027.1,3.34349179]
[1752586275546,5.29,3027.7,3027.5,0.8012]
[1752586275883,7.926,3028.5,3027.9,3.30261897]
[1752586276085,0.1648,3028.7,3028.6,3.30177494]
[1752586276761,5.4588,3028.7,3028.6,3.30177494]
[1752586276919,10.0,3028.6,3028.2,3.30221209]
[1752586277244,8.39657183,3029.1,3028.0,3.30244185]
[1752586277245,0.1648,3028.3,3028.0,3.30244185]
[1752586277442,0.1648,3028.0,3027.7,4.26880384]
[1752586277605,15.297,3028.4,3028.3,3.30218274]
[1752586277801,5.297,3028.6,3028.5,3.30196466]
[1752586278307,0.1648,3028.8,3028.3,0.1648]
[1752586278624,0.1648,3028.8,3028.1,0.8012]
[1752586278625,0.1648,3028.8,3028.6,3.30178342]
[1752586278940,10.0,3028.7,3028.6,3.30185564]
[1752586279295,0.1648,3028.9,3028.8,3.30163761]
[1752586279500,5.4678,3029.2,3029.0,3.30134066]
[1752586279835,7.929,3029.7,3029.3,3.30099855]
[1752586280009,7.929,3029.7,3029.0,0.8012]
[1752586280010,0.1648,3029.4,3029.0,0.8012]
[1752586280209,5.304,3029.3,3028.6,0.8012]
[1752586280541,0.1648,3029.5,3029.3,3.30100683]
[1752586280701,0.1648,3029.5,3028.9,3.46628382]
[1752586280901,3.29961606,3030.7,3029.0,3.30141961]
[1752586280902,0.7935,3030.6,3029.0,3.30141961]
[1752586281104,13.70457183,3030.2,3028.7,0.7747]
[1752586281316,8.39657183,3030.2,3028.7,0.7747]
[1752586281642,8.39657183,3029.7,3028.7,0.7747]
[1752586281844,13.30088847,3029.5,3028.7,0.7747]
[1752586282014,10.0,3029.3,3028.4,3.3020044]
[1752586282215,30.0,3029.2,3028.3,3.30211202]
[1752586282452,5.332,3029.1,3028.1,0.8173]
[1752586282617,5.332,3029.1,3028.2,3.30222505]
[1752586282805,2.14545718,3029.0,3028.2,3.30229179]
[1752586283147,2.14545718,3029.0,3028.1,0.8173]
[1752586283535,10.0,3028.8,3028.1,0.8173]
[1752586283891,2.14545718,3029.0,3027.2,5.33]
[1752586283892,12.14545718,3029.0,3027.7,0.7663]
[1752586284160,0.7954,3029.4,3028.8,3.30160607]
[1752586284365,0.7954,3029.4,3028.4,0.7663]
[1752586284366,5.331,3029.3,3029.2,3.30120163]
[1752586284709,5.331,3029.3,3029.2,4.06000163]
[1752586284910,5.333,3029.4,3029.2,0.7588]
[1752586285147,8.7254,3030.0,3029.2,0.7588]
[1752586285148,8.7254,3030.0,3029.5,3.30086442]
[1752586285306,10.0,3029.7,3029.2,0.7588]
[1752586285807,11.5373,3029.7,3029.3,3.30106642]
[1752586286029,11.5373,3029.7,3029.4,3.30092023]
[1752586286230,5.332,3029.6,3028.9,0.03301528]
[1752586286458,10.0,3029.7,3029.5,3.30087473]
[1752586286743,0.8028,3030.5,3029.8,3.30054789]
[1752586286918,0.8406,3030.9,3029.8,4.08284789]
[1752586287447,1e-08,3029.9,3029.8,4.66585336]
[1752586287652,1e-08,3029.9,3029.8,5.46250523]
[1752586288031,1e-08,3029.9,3029.8,5.42949976]
[1752586288650,1e-08,3029.9,3029.8,5.46250523]
[1752586288812,1e-08,3029.9,3029.8,5.42949976]
[1752586289454,1e-08,3029.9,3029.8,5.46250523]
[1752586289752,1e-08,3029.9,3029.8,5.42949976]
[1752586290343,1e-08,3029.9,3029.8,15.46250523]
[1752586290659,1e-08,3029.9,3029.8,15.42949976]
[1752586290816,1e-08,3029.9,3029.8,15.59429976]
[1752586291018,1e-08,3029.9,3029.8,15.59529976]
[1752586291528,1e-08,3029.9,3029.8,15.39529976]
[1752586291926,1e-08,3029.9,3029.8,20.72829976]
[1752586292461,0.04,3030.9,3029.8,20.72829976]
[1752586292630,0.002,3031.1,3030.9,1.3363]
[1752586292815,0.002,3031.1,3031.0,3.46404117]
[1752586293010,0.002,3031.2,3031.1,3.29913232]
[1752586293968,0.002,3031.2,3031.1,3.33212364]
[1752586294161,0.002,3031.2,3031.1,3.29913232]
[1752586295303,0.002,3031.2,3031.1,8.62913232]
[1752586295442,0.002,3031.2,3031.1,3.29913232]
[1752586296085,0.002,3031.2,3031.0,0.1648]
[1752586296289,0.002,3031.2,3030.1,0.7558]
[1752586296469,0.1648,3031.1,3030.8,3.29939465]
[1752586296792,0.1648,3031.1,3030.7,3.29953793]
[1752586296946,0.1648,3031.1,3030.6,0.1648]
[1752586297148,0.002,3031.2,3031.1,3.29913232]
[1752586297573,0.002,3031.2,3031.0,0.1648]
[1752586297775,0.786,3031.1,3030.4,3.29983511]
[1752586297982,0.1648,3030.8,3030.4,0.1648]
[1752586298472,0.1648,3030.7,3030.2,3.30009675]
[1752586298674,0.1648,3030.7,3030.1,3.46500984]
[1752586298875,0.1648,3030.7,3030.2,3.30008825]
[1752586299195,0.786,3031.1,3030.3,0.34648883]
[1752586299396,0.9508,3031.1,3030.6,3.29967663]
[1752586299700,0.002,3031.2,3030.9,0.1648]
[1752586299846,0.002,3031.2,3030.4,0.7697]
[1752586300051,0.002,3031.2,3030.9,0.1648]
[1752586300254,0.002,3031.2,3030.9,3.46411004]
[1752586300453,0.002,3031.2,3030.3,8.63493928]
[1752586300454,0.002,3031.2,3029.9,0.788]
[1752586300815,1.49489546,3031.1,3030.7,3.29954933]
[1752586301018,0.1648,3031.1,3030.5,0.1648]
[1752586301146,0.002,3031.2,3029.9,0.788]
[1752586301350,10.7904,3031.0,3029.9,0.788]
[1752586301550,0.1648,3030.6,3030.1,0.1648]
[1752586301750,0.1648,3030.6,3030.1,3.46501008]
[1752586301991,0.1648,3030.6,3030.2,3.30002118]
[1752586302697,14.08964477,3031.0,3029.9,3.30037387]
[1752586302698,3.29946667,3030.8,3029.9,3.30037387]
[1752586302916,1.38494667,3030.7,3030.3,3.29993991]
[1752586303114,0.1648,3030.7,3030.3,3.29990409]
[1752586303267,0.1648,3030.7,3030.2,0.1648]
[1752586303613,0.7904,3031.0,3030.0,0.1648]
[1752586303614,0.1648,3030.5,3030.0,0.1648]
[1752586303812,10.0,3030.7,3029.8,3.30152664]
[1752586304021,0.1648,3030.3,3029.8,0.1658]
[1752586304313,0.1648,3030.3,3030.0,3.30023637]
[1752586304482,0.9708,3030.3,3029.8,3.46633438]
[1752586304814,0.9708,3030.3,3029.9,3.3004221]
[1752586305013,0.9708,3030.3,3029.9,3.30037488]
[1752586305214,0.9708,3030.3,3029.8,0.1658]
[1752586305215,0.806,3030.3,3029.8,0.001]
[1752586305367,0.1648,3030.0,3029.8,0.001]
[1752586306473,0.1648,3030.0,3029.8,3.30146286]
[1752586306713,0.1648,3030.0,3029.8,0.001]
[1752586307875,0.1648,3030.0,3029.9,3.30043895]
[1752586308114,0.1648,3030.0,3029.8,0.001]
[1752586308421,0.806,3030.3,3030.1,3.30012655]
[1752586308717,0.9708,3030.3,3030.1,3.3002102]
[1752586308914,0.1648,3030.3,3030.2,3.3001122]
[1752586309122,0.1648,3030.3,3029.8,0.1658]
[1752586309123,10.002,3031.2,3029.8,0.82020547]
[1752586309278,0.1648,3030.8,3030.5,3.29974356]
[1752586309713,0.1648,3030.8,3030.6,3.29966431]
[1752586309913,1.08263,3031.1,3030.2,0.03300112]
[1752586310143,0.1648,3031.0,3030.4,0.1648]
[1752586310369,0.002,3031.2,3031.1,3.29913232]
[1752586310782,0.002,3031.2,3030.8,3.29945129]
[1752586310986,0.002,3031.2,3031.1,3.29913232]
[1752586311301,0.002,3031.2,3030.8,3.29944552]
[1752586311650,0.002,3031.2,3031.1,3.29913232]
[1752586311805,0.002,3031.2,3030.9,3.29927369]
[1752586312191,0.002,3031.2,3030.7,0.1648]
[1752586312745,0.002,3031.2,3030.8,3.29945771]
[1752586313093,0.002,3031.2,3030.7,3.46435183]
[1752586313296,0.1648,3031.0,3030.7,3.29955183]
[1752586313543,0.1648,3031.0,3030.5,0.1648]
[1752586313693,0.1648,3031.0,3030.6,3.29959149]
[1752586314090,1.71418,3031.0,3030.7,3.29954858]
[1752586314292,1.71418,3031.0,3030.8,3.29935942]
[1752586314489,1.71418,3031.0,3030.9,3.29935002]
[1752586314720,0.1648,3031.0,3030.9,3.29935002]
[1752586315131,0.002,3031.2,3031.1,3.29913232]
[1752586315889,0.002,3031.2,3031.0,3.2992108]
[1752586316092,0.002,3031.2,3031.0,3.29924117]
[1752586316288,0.7799,3031.1,3030.1,0.7934]
[1752586316493,0.1648,3031.0,3030.6,3.29961416]
[1752586316789,0.1648,3031.0,3030.5,0.1648]
[1752586317139,0.1648,3031.0,3030.7,3.29956694]
[1752586317650,1.39079,3031.1,3030.5,3.29971993]
[1752586317846,0.1648,3030.8,3030.6,3.29964995]
[1752586318058,30.55,3030.7,3028.5,0.001]
[1752586318189,22.46452747,3028.6,3028.5,0.001]
[1752586318396,10.0,3028.5,3028.1,0.04]
[1752586318595,10.55,3028.2,3028.1,0.04]
[1752586318798,17.77717768,3028.2,3028.1,0.04]
[1752586319157,44.64241324,3028.2,3028.1,0.04]
[1752586319299,40.7661,3028.2,3028.1,0.04]
[1752586319497,0.7661,3028.2,3028.1,0.04]
[1752586319804,0.8087,3028.6,3028.1,0.04]
[1752586319987,0.1648,3028.4,3028.3,3.30218274]
[1752586320191,0.8113,3029.0,3028.7,3.30173179]
[1752586320389,0.8113,3029.0,3028.4,3.3020737]
[1752586320592,0.1648,3029.0,3028.9,3.3015286]
[1752586320802,0.1648,3029.0,3028.5,0.1648]
[1752586321030,0.1648,3029.0,3028.6,5.564]
[1752586321205,0.8113,3029.6,3029.1,3.30122038]
[1752586321391,0.1648,3029.3,3029.0,3.30139522]
[1752586321588,0.1648,3029.3,3029.1,3.30129984]
[1752586321793,0.1648,3029.3,3028.7,0.1648]
[1752586322033,0.1648,3029.3,3029.0,3.30141589]
[1752586322233,0.8113,3029.6,3028.6,5.56]
[1752586322430,0.1648,3029.0,3028.5,0.1648]
[1752586322635,0.1648,3029.0,3028.8,3.30162288]
[1752586322838,3.30069019,3029.7,3028.1,3.34234066]
[1752586322839,39.18877183,3028.9,3028.1,0.04]
[1752586323009,3.43168186,3029.8,3026.7,0.7616]
[1752586323010,4.09449179,3028.2,3026.7,0.7616]
[1752586323337,0.1648,3027.5,3026.8,0.1648]
[1752586323524,0.7922,3027.4,3027.0,3.3035704]
[1752586323722,0.7922,3027.4,3026.6,3.30401022]
[1752586323924,0.7922,3027.4,3026.7,3.30388947]
[1752586324134,0.7922,3027.4,3026.8,3.30374998]
[1752586324330,10.7922,3027.4,3026.3,0.1648]
[1752586324542,10.7922,3027.4,3026.2,6.3306]
[1752586324543,0.7922,3027.4,3026.5,0.1648]
[1752586324692,1.07922,3027.3,3026.5,0.1648]
[1752586324898,0.55,3027.9,3027.1,3.34349179]
[1752586325144,0.8318,3028.0,3027.1,0.04]
[1752586325455,10.0,3027.8,3027.1,0.04]
[1752586325638,13.30273924,3027.8,3027.1,0.04]
[1752586325797,3.30310293,3027.5,3027.1,0.04]
[1752586326000,10.0,3027.6,3027.1,0.04]
[1752586326001,3.30298454,3027.6,3027.1,0.04]
[1752586326238,3.30306297,3027.5,3027.1,0.04]
[1752586326416,0.7795,3027.3,3027.1,0.04]
[1752586327174,40.0,3027.2,3027.1,0.04]
[1752586327404,43.35666214,3027.2,3027.1,0.04]
[1752586327864,13.35666214,3027.2,3027.1,0.04]
[1752586328062,0.7795,3027.3,3027.1,0.04]
[1752586328235,5.566,3027.4,3027.1,3.3434808]
[1752586328441,0.8159,3027.7,3027.1,0.04]
[1752586328673,10.0,3027.6,3027.2,3.30337018]
[1752586328868,10.0,3027.6,3027.1,0.04]
[1752586329082,11.63789,3027.6,3027.1,0.04]
[1752586329288,10.55,3027.2,3027.1,0.04]
[1752586329467,10.0,3027.2,3027.1,0.04]
[1752586329957,40.0,3027.2,3027.1,0.04]
[1752586330342,43.85338266,3027.2,3027.1,0.04]
[1752586330556,47.2100448,3027.2,3027.1,0.04]
[1752586330892,13.35666214,3027.2,3027.1,0.04]
[1752586331039,0.8159,3027.7,3027.1,0.04]
[1752586331239,0.7676,3028.6,3027.1,0.04]
[1752586331485,35.57,3028.5,3027.5,3.30299274]
[1752586331683,10.0,3028.3,3027.4,3.30316443]
[1752586331903,30.0,3028.2,3027.1,0.04]
[1752586332105,10.0,3028.3,3027.2,0.33765818]
[1752586332409,35.569,3028.2,3027.7,3.30282812]
[1752586332576,0.7676,3028.6,3027.2,3.67398558]
[1752586332777,6.3346,3028.6,3027.4,0.8124]
[1752586333031,10.0,3028.5,3028.0,3.30242181]
[1752586333214,10.0,3028.5,3027.5,0.03303055]
[1752586333508,6.3346,3028.6,3028.2,3.30227104]
[1752586333664,10.0,3028.5,3027.4,0.8124]
[1752586333867,10.0,3028.5,3027.5,3.30305532]
[1752586334066,10.0,3028.5,3028.1,3.30237992]
[1752586334475,6.3346,3028.6,3028.0,0.001]
[1752586334926,0.1648,3028.5,3028.4,3.30206666]
[1752586335224,5.558,3028.9,3028.4,3.30206666]
[1752586335389,0.1648,3028.7,3028.2,0.1648]
[1752586335902,0.1648,3028.4,3028.1,3.30240084]
[1752586336113,0.1648,3028.4,3028.0,0.001]
[1752586336471,0.1648,3028.4,3028.3,3.30218274]
[1752586336665,0.1648,3028.8,3028.2,0.1648]
[1752586337099,0.1648,3028.8,3028.6,3.30184143]
[1752586337301,0.1648,3028.8,3028.2,0.1648]
[1752586337628,0.1648,3028.8,3028.4,3.30198675]
[1752586337810,6.3373,3029.0,3028.7,3.30174662]
[1752586338016,5.553,3029.0,3028.8,3.30159355]
[1752586338214,5.7178,3029.0,3028.4,0.1648]
[1752586338418,5.7178,3029.0,3028.8,3.30154373]
[1752586338640,0.002,3029.3,3028.5,3.33494141]
[1752586338937,0.1648,3029.2,3028.8,3.30154778]
[1752586339144,0.1648,3029.2,3028.8,3.30163728]
[1752586339355,0.1648,3029.2,3029.1,3.30131062]
[1752586339499,0.1648,3029.2,3028.8,3.3016103]
[1752586339848,0.1648,3029.2,3028.8,3.30161492]
[1752586340029,0.1648,3029.2,3028.7,0.1648]
[1752586340237,1.18148,3029.2,3028.7,0.1648]
[1752586340413,0.1648,3028.7,3028.2,0.1648]
[1752586340614,10.0,3028.5,3028.0,0.001]
[1752586340843,0.1648,3028.3,3028.0,0.001]
[1752586341535,0.1648,3028.3,3028.2,3.30229179]
[1752586341739,0.1648,3028.6,3028.1,0.1648]
[1752586342043,0.1648,3028.6,3028.5,3.30196466]
[1752586342405,5.534,3028.8,3028.6,3.30185564]
[1752586342605,5.534,3028.8,3028.7,3.30174662]
[1752586342843,0.1648,3029.0,3028.9,3.3015286]
[1752586343044,5.533,3029.0,3028.9,3.3015286]
[1752586343342,10.0,3028.9,3028.7,3.30172469]
[1752586343557,10.0,3028.9,3028.8,3.30163761]
[1752586343736,10.30637285,3028.9,3028.8,3.30163761]
[1752586343905,10.0,3028.9,3028.8,3.30163761]
[1752586344319,10.0,3028.9,3028.7,3.30172154]
[1752586344520,10.0,3028.9,3028.4,3.46686962]
[1752586344751,10.0,3028.9,3028.7,3.30167963]
[1752586344958,10.0,3028.9,3028.6,3.30183875]
[1752586345263,10.0,3028.9,3028.7,3.30167213]
[1752586345421,10.0,3028.9,3028.6,3.30180868]
[1752586345938,10.0,3028.9,3028.8,3.30163761]
[1752586346133,5.6978,3029.0,3028.4,0.1648]
[1752586346134,0.1648,3029.0,3028.4,0.1648]
[1752586346354,5.525,3028.9,3028.8,3.30163761]
[1752586346577,0.1648,3029.0,3028.9,3.3015286]
[1752586346907,10.0,3029.0,3028.9,3.3015286]
[1752586347611,10.0,3029.0,3028.9,3.4663286]
[1752586347759,0.002,3029.3,3029.2,3.30120163]
[1752586348463,0.002,3029.3,3028.8,4.08630968]
[1752586348688,0.002,3029.3,3029.2,3.30120163]
[1752586348890,0.002,3029.3,3029.1,3.30130884]
[1752586348891,0.002,3029.3,3029.1,3.30124169]
[1752586349166,0.002,3029.3,3029.2,3.30120163]
[1752586349706,0.002,3029.3,3028.9,0.1648]
[1752586350063,0.002,3029.3,3029.2,3.30120163]
[1752586351009,0.8165,3029.2,3029.0,3.30136215]
[1752586351317,0.1648,3028.9,3028.2,0.1648]
[1752586351462,1.01648,3028.8,3028.4,3.30200231]
[1752586351667,10.1648,3028.6,3028.3,3.30209963]
[1752586351904,10.1648,3028.6,3028.3,3.30217223]
[1752586352141,10.1648,3028.6,3028.5,3.30196466]
[1752586352641,0.8165,3029.2,3028.2,3.46701868]
[1752586352817,10.1648,3029.0,3028.6,3.30175004]
[1752586353012,10.1648,3029.0,3028.8,3.30163035]
[1752586353225,11.81283,3029.0,3028.7,3.30165604]
[1752586353538,11.81283,3029.0,3028.6,3.30179549]
[1752586353744,11.81283,3029.0,3028.5,3.46673593]
[1752586353944,10.0,3028.8,3028.5,0.1648]
[1752586354152,4.79676329,3028.7,3028.2,0.1648]
[1752586354356,10.0,3028.4,3028.0,0.001]
[1752586354510,10.0,3028.2,3028.0,0.001]
[1752586355150,44.62650084,3028.1,3028.0,0.001]
[1752586355463,44.13076214,3028.1,3028.0,0.001]
[1752586355610,15.497,3028.1,3028.0,0.001]
[1752586356647,10.0,3028.1,3028.0,3.3035099]
[1752586356846,10.0,3028.1,3028.0,4.0736099]
[1752586357550,5.6638,3028.4,3028.3,3.30218274]
[1752586357551,5.499,3028.4,3028.3,3.30218274]
[1752586357754,0.1648,3028.7,3028.6,3.30185564]
[1752586358116,15.496,3028.7,3028.6,3.30185564]
[1752586358526,0.1648,3029.0,3028.8,3.30153244]
[1752586358731,0.1648,3029.0,3028.4,0.1648]
[1752586359060,5.495,3028.9,3028.4,0.1648]
[1752586359231,15.495,3028.9,3028.8,3.30163761]
[1752586359419,10.0,3028.9,3028.8,3.30163761]
[1752586359633,5.492,3029.1,3028.7,0.7879]
[1752586359934,5.492,3029.1,3028.9,3.30143684]
[1752586360146,5.492,3029.1,3028.8,0.1648]
[1752586360365,6.22268,3029.1,3028.8,3.30156586]
[1752586360744,6.22268,3029.1,3028.5,0.1648]
[1752586361069,5.6568,3029.1,3028.8,3.30162277]
[1752586361270,0.002,3029.3,3029.0,3.3013322]
[1752586361568,0.002,3029.3,3028.7,3.30167838]
[1752586361569,5.487,3029.1,3028.7,3.30167838]
[1752586361867,5.487,3029.1,3028.3,0.7723]
[1752586361868,5.6518,3029.1,3028.8,3.30163761]
[1752586362072,5.6518,3029.1,3028.7,3.30174662]
[1752586362278,5.6518,3029.1,3028.6,0.1648]
[1752586362443,6.21718,3029.1,3028.6,0.1648]
[1752586362773,10.0,3029.0,3028.6,3.46663802]
[1752586362977,10.0,3029.0,3028.9,3.3015286]
[1752586363373,0.1648,3029.1,3029.0,3.30141961]
[1752586363573,10.0,3029.1,3029.0,3.30141961]
[1752586363978,0.002,3029.3,3029.2,3.30120163]
[1752586364868,0.002,3029.3,3029.1,3.30121717]
[1752586365067,0.8154,3029.2,3028.1,0.7791]
[1752586365253,10.8154,3029.2,3028.4,3.30198469]
[1752586365457,10.0,3028.8,3028.2,3.30221385]
[1752586365657,13.30187885,3028.6,3028.0,3.30343356]
[1752586365882,10.0,3028.6,3028.0,3.30343356]
[1752586366093,0.7506,3028.5,3028.0,0.001]
[1752586366257,5.474,3028.4,3028.0,0.001]
[1752586366657,10.0,3028.2,3028.0,0.001]
[1752586366976,15.474,3028.1,3028.0,0.001]
[1752586367196,15.475,3028.1,3028.0,0.001]
[1752586367556,15.91568348,3028.1,3028.0,0.001]
[1752586368373,15.91468348,3028.1,3028.0,0.001]
[1752586368567,15.474,3028.1,3028.0,0.001]
[1752586369373,45.474,3028.1,3028.0,0.001]
[1752586369587,48.77640084,3028.1,3028.0,0.001]
[1752586369793,45.474,3028.1,3028.0,0.001]
[1752586370122,49.57610084,3028.1,3028.0,0.001]
[1752586370257,52.93276298,3028.1,3028.0,0.001]
[1752586370796,53.48276298,3028.1,3028.0,0.001]
[1752586373273,56.40533481,3028.1,3028.0,0.001]
[1752586373474,61.85633481,3028.1,3028.0,0.001]
[1752586374911,3.30338266,3027.2,3027.1,0.04]
[1752586375082,10.0,3027.1,3026.8,0.001]
[1752586375402,10.0,3026.9,3026.8,0.001]
[1752586375695,5.453,3026.9,3026.8,0.001]
[1752586375872,10.0,3026.9,3026.8,0.001]
[1752586376254,10.0,3026.9,3026.8,3.30481921]
[1752586376453,0.8313,3027.6,3026.8,3.63530113]
[1752586376699,10.0,3027.4,3027.1,3.30346983]
[1752586376896,10.0,3027.2,3027.1,3.30346983]
[1752586377106,7.931,3027.8,3026.8,1.13208192]
[1752586377306,0.8263,3028.0,3027.6,3.30294622]
[1752586377507,5.449,3027.9,3027.5,3.30300876]
[1752586377813,5.449,3027.9,3027.3,3.30327354]
[1752586378010,10.0,3027.8,3027.4,3.30316443]
[1752586378187,10.0,3027.6,3027.4,3.30313946]
[1752586378511,10.0,3027.6,3027.5,3.30305532]
[1752586379069,10.0,3027.7,3027.6,3.30294622]
[1752586379267,5.442,3028.1,3028.0,3.30249825]
[1752586379525,5.442,3028.1,3028.0,3.3025099]
[1752586379903,15.442,3028.1,3028.0,3.3025099]
[1752586380304,15.442,3028.1,3027.6,3.30290433]
[1752586380305,10.0,3028.0,3027.6,3.3029324]
[1752586380607,5.442,3027.9,3027.6,3.3029147]
[1752586380767,15.44,3027.8,3027.2,0.755]
[1752586380975,10.0,3027.6,3027.1,3.30348718]
[1752586381207,10.0,3027.3,3026.9,0.7968]
[1752586381405,10.0,3027.2,3026.8,0.001]
[1752586381674,5.438,3027.1,3027.0,3.30360092]
[1752586381934,5.438,3027.1,3026.8,3.30477535]
[1752586382154,10.0,3027.0,3026.8,0.001]
[1752586382294,0.7923,3027.3,3026.8,3.30476848]
[1752586382490,10.0,3027.1,3026.9,3.30365086]
[1752586382725,10.7923,3027.7,3026.9,3.30370196]
[1752586382933,10.0,3027.5,3027.1,3.30340759]
[1752586383196,5.439,3027.4,3027.1,3.30347299]
[1752586383502,10.0,3027.2,3027.1,3.30349179]
[1752586383704,8.65,3028.0,3027.0,0.8011]
[1752586383933,2.35069701,3029.8,3027.0,0.8011]
[1752586383934,15.436,3027.9,3027.8,3.30267183]
[1752586384091,0.002,3028.1,3028.0,3.3025099]
[1752586384287,0.002,3028.1,3028.0,4.04313244]
[1752586384927,5.438,3028.5,3028.4,3.3020737]
[1752586385130,7.972,3028.9,3028.8,3.30163761]
[1752586385293,5.478,3028.9,3028.8,3.30163761]
[1752586387002,15.478,3028.9,3028.8,3.30163761]
[1752586387196,10.0,3028.8,3028.6,0.1648]
[1752586387450,5.478,3028.9,3028.2,4.05665632]
[1752586387652,10.0,3028.8,3028.3,0.1648]
[1752586387956,0.1648,3028.6,3028.1,0.1648]
[1752586388098,0.1648,3028.6,3028.5,3.30196466]
[1752586388304,0.1648,3028.8,3028.6,3.30182126]
[1752586388555,15.429,3028.7,3028.6,3.30182126]
[1752586388756,10.0,3028.6,3028.5,3.30193294]
[1752586389051,0.1648,3028.8,3028.7,3.30174662]
[1752586389194,0.1648,3028.8,3028.6,3.30185564]
[1752586389195,0.04,3028.9,3028.8,3.30163761]
[1752586389394,15.466,3028.9,3028.8,3.30163761]
[1752586390019,10.04,3028.9,3028.8,3.30163761]
[1752586390221,0.04,3028.9,3028.8,3.96197739]
[1752586390410,0.04,3028.9,3028.8,4.12677739]
[1752586390807,8.39657183,3030.5,3029.3,3.30109266]
[1752586391011,0.002,3030.6,3029.3,4.06949266]
[1752586391012,5.426,3030.2,3029.3,4.06949266]
[1752586391243,10.0,3030.1,3029.3,4.97466389]
[1752586391600,1e-08,3029.4,3029.3,4.97466389]
[1752586391795,1e-08,3029.4,3029.3,5.00767481]
[1752586392026,1e-08,3029.4,3029.3,5.55767481]
[1752586392300,1e-08,3029.9,3029.8,4.06894789]
[1752586392640,1e-08,3029.9,3029.8,10.26191482]
[1752586392804,1e-08,3029.9,3029.8,10.22890935]
[1752586393004,0.002,3030.6,3030.5,3.29978551]
[1752586393560,0.002,3030.6,3030.5,4.10118336]
[1752586393857,0.002,3030.6,3030.5,4.23298551]
[1752586394045,0.002,3030.6,3030.5,3.46458551]
[1752586394242,0.002,3030.6,3030.0,5.416]
[1752586394415,0.002,3030.6,3030.5,3.29978551]
[1752586395054,0.002,3030.6,3030.5,4.26418336]
[1752586395355,1e-08,3030.6,3030.5,4.81418336]
[1752586395527,0.002,3031.2,3030.5,4.78118551]
[1752586395732,0.04,3031.9,3031.8,3.2983706]
[1752586396322,0.04,3031.9,3031.8,3.3313543]
[1752586396665,0.04,3031.9,3031.8,3.2983706]
[1752586397421,0.04,3031.9,3031.8,4.80514209]
[1752586397846,0.04,3031.9,3031.8,4.83812579]
[1752586398035,0.04,3031.9,3031.8,10.25012579]
[1752586398234,0.04,3031.9,3031.8,10.21714209]
[1752586398433,0.04,3031.9,3031.8,4.80514209]
[1752586398662,0.04,3031.9,3031.8,9.5346706]
[1752586399934,0.04,3031.9,3031.8,9.5316706]
[1752586400135,0.04,3031.9,3031.8,4.1256706]
[1752586400349,0.04,3031.9,3031.8,9.5286706]
[1752586401269,0.04,3031.9,3031.8,4.1256706]
[1752586401445,0.04,3031.9,3031.8,4.88457361]
[1752586401648,0.002,3032.2,3032.1,3.29804425]
[1752586401858,0.002,3032.2,3032.1,8.73002469]
[1752586402066,0.002,3032.2,3032.1,8.86184425]
[1752586402266,0.002,3032.5,3032.4,3.29771797]
[1752586402478,0.002,3032.5,3032.4,10.15505148]
[1752586402643,0.002,3032.5,3032.4,10.12207431]
[1752586402967,0.002,3032.5,3032.4,10.28687431]
[1752586403563,0.002,3032.5,3032.4,4.88987431]
[1752586403862,0.002,3032.5,3032.4,8.85451797]
[1752586404272,0.002,3032.5,3032.4,3.46251797]
[1752586404868,0.002,3032.5,3032.4,3.29771797]
[1752586405865,0.002,3032.5,3032.4,3.46251797]
[1752586406864,0.002,3032.5,3032.4,8.84751797]
[1752586407059,0.002,3032.5,3032.4,10.06535191]
[1752586407259,0.04,3032.9,3032.8,3.29728303]
[1752586407860,0.04,3032.9,3032.7,3.29735738]
[1752586408179,0.04,3032.9,3032.7,3.29732593]
[1752586408337,0.1648,3032.8,3032.7,3.29732593]
[1752586408748,0.04,3032.9,3032.8,3.29728303]
[1752586408948,0.002,3033.2,3032.8,3.29728303]
[1752586409155,0.002,3033.2,3033.1,3.2969569]
[1752586409687,0.002,3033.2,3033.1,3.4617569]
[1752586411274,0.002,3033.2,3033.1,8.8337569]
[1752586411776,0.002,3033.2,3033.1,3.4617569]
[1752586412548,0.002,3033.2,3030.9,8.55730657]
[1752586412775,0.002,3033.2,3033.1,3.2969569]
[1752586414451,0.04,3033.9,3033.8,3.29619618]
[1752586414655,0.8268,3034.8,3033.8,4.27629305]
[1752586414896,0.8268,3034.8,3034.7,3.29521863]
[1752586415066,0.8268,3034.8,3034.6,3.29528902]
[1752586415269,0.8268,3034.8,3034.0,0.03295978]
[1752586415470,1.13078052,3034.8,3034.0,0.98420757]
[1752586415670,0.7614,3035.1,3034.7,3.29521863]
[1752586415989,0.7614,3035.1,3034.8,3.29511005]
[1752586416188,0.30398052,3035.5,3034.8,3.29511005]
[1752586416412,0.04000001,3035.9,3035.3,3.29456725]
[1752586416413,0.30398052,3035.4,3035.3,3.29456725]
[1752586416564,0.30398052,3035.8,3034.9,5.369]
[1752586416766,0.04000001,3035.9,3033.9,3.29598114]
[1752586416767,0.30398052,3035.7,3033.9,3.29598114]
[1752586416961,11.06108052,3035.6,3034.1,5.369]
[1752586417161,0.30398052,3035.5,3034.9,3.2949001]
[1752586417379,0.30398052,3035.4,3035.1,3.29477063]
[1752586417579,0.30398052,3035.3,3035.2,3.2946758]
[1752586417802,0.30398052,3035.5,3034.8,3.29511005]
[1752586418064,0.7571,3035.6,3034.9,3.32791319]
[1752586418270,0.7571,3035.6,3035.5,3.29435018]
[1752586418466,1.06108052,3035.6,3035.5,3.29435018]